[Event "Titled Tuesday Blitz May 4 2021"]
[White "Baker, Chris W"]
[Black "Zia, Tahsin Tajwar"]
[WhiteFideId "401676"]
[BlackFideId "10211888"]
[WhiteElo "2221"]
[BlackElo "1678"]
[Result "0-1"]
[Round "05"]
[TimeControl "180+1"]
[Date "2021.05.04"]
[WhiteClock "0:00:01"]
[BlackClock "0:00:03"]

1. e4 {[%clk 0:03:00]}  c6 {[%clk 0:02:58]} 2. d4 {[%clk 0:03:00]}  d5 {[%clk 0:02:59]} 3. Nd2 {[%clk 0:03:00]}  dxe4 {[%clk 0:02:58]} 4. Nxe4 {[%clk 0:03:00]}  Nf6 {[%clk 0:02:59]} 5. Nxf6+ {[%clk 0:02:59]}  exf6 {[%clk 0:03:00]} 6. Bd3 {[%clk 0:02:58]}  Bd6 {[%clk 0:03:01]} 7. Ne2 {[%clk 0:02:58]}  O-O {[%clk 0:03:00]} 8. O-O {[%clk 0:02:57]}  Bg4 {[%clk 0:03:00]} 9. f3 {[%clk 0:02:48]}  Bh5 {[%clk 0:02:56]} 10. Bf4 {[%clk 0:02:47]}  Bg6 {[%clk 0:02:51]} 11. Bxg6 {[%clk 0:02:43]}  hxg6 {[%clk 0:02:50]} 12. Qd2 {[%clk 0:02:40]}  Na6 {[%clk 0:02:49]} 13. Rae1 {[%clk 0:02:37]}  Nc7 {[%clk 0:02:44]} 14. c4 {[%clk 0:02:33]}  g5 {[%clk 0:02:39]} 15. Bxd6 {[%clk 0:02:25]}  Qxd6 {[%clk 0:02:40]} 16. Ng3 {[%clk 0:02:24]}  Qd7 {[%clk 0:02:33]} 17. Qd3 {[%clk 0:02:08]}  Rad8 {[%clk 0:02:28]} 18. Rd1 {[%clk 0:01:55]}  Ne6 {[%clk 0:02:27]} 19. d5 {[%clk 0:01:36]}  Nf4 {[%clk 0:02:22]} 20. Qf5 {[%clk 0:01:27]}  cxd5 {[%clk 0:02:12]} 21. cxd5 {[%clk 0:01:21]}  Qb5 {[%clk 0:02:02]} 22. Rf2 {[%clk 0:01:00]}  Rfe8 {[%clk 0:01:52]} 23. Ne4 {[%clk 0:00:53]}  Re5 {[%clk 0:01:44]} 24. Qg4 {[%clk 0:00:45]}  Rexd5 {[%clk 0:01:32]} 25. Rxd5 {[%clk 0:00:43]}  Qxd5 {[%clk 0:01:24]} 26. h4 {[%clk 0:00:40]}  Qd1+ {[%clk 0:01:08]} 27. Kh2 {[%clk 0:00:40]}  Ne2 {[%clk 0:01:05]} 28. Rxe2 {[%clk 0:00:31]}  Qxe2 {[%clk 0:01:03]} 29. hxg5 {[%clk 0:00:32]}  Qe3 {[%clk 0:00:51]} 30. gxf6 {[%clk 0:00:16]}  Qh6+ {[%clk 0:00:48]} 31. Kg3 {[%clk 0:00:15]}  g6 {[%clk 0:00:38]} 32. Ng5 {[%clk 0:00:13]}  Rd5 {[%clk 0:00:29]} 33. Qc8+ {[%clk 0:00:10]}  Qf8 {[%clk 0:00:29]} 34. Qg4 {[%clk 0:00:09]}  Qd6+ {[%clk 0:00:28]} 35. Kh3 {[%clk 0:00:08]}  Rd1 {[%clk 0:00:25]} 36. f4 {[%clk 0:00:06]}  Rh1+ {[%clk 0:00:16]} 37. Kg3 {[%clk 0:00:06]}  Qd3+ {[%clk 0:00:13]} 38. Nf3 {[%clk 0:00:06]}  Qd8 {[%clk 0:00:06]} 39. Qg5 {[%clk 0:00:04]}  Rh5 {[%clk 0:00:06]} 40. Qg4 {[%clk 0:00:03]}  Qxf6 {[%clk 0:00:06]} 41. Qc8+ {[%clk 0:00:03]}  Kg7 {[%clk 0:00:07]} 42. Qxb7 {[%clk 0:00:03]}  Rf5 {[%clk 0:00:05]} 43. Qc7 {[%clk 0:00:02]}  Qxb2 {[%clk 0:00:04]} 44. Ne5 {[%clk 0:00:01]}  Qa3+ {[%clk 0:00:03]} 0-1


[Site "https://www.chess.com"]

[Event "Titled Tuesday Blitz May 4 2021"]
[White "Belous, Vladimir"]
[Black "Sanal, Vahap"]
[WhiteFideId "4174003"]
[BlackFideId "6300545"]
[WhiteElo "2583"]
[BlackElo "2507"]
[Result "1-0"]
[Round "05"]
[TimeControl "180+1"]
[Date "2021.05.04"]
[WhiteClock "0:00:22"]
[BlackClock "0:00:07"]

1. Nf3 {[%clk 0:03:00]}  Nf6 {[%clk 0:02:59]} 2. c4 {[%clk 0:03:01]}  g6 {[%clk 0:02:59]} 3. Nc3 {[%clk 0:03:01]}  Bg7 {[%clk 0:03:00]} 4. e4 {[%clk 0:03:01]}  O-O {[%clk 0:03:01]} 5. d4 {[%clk 0:03:02]}  d6 {[%clk 0:03:01]} 6. h3 {[%clk 0:03:02]}  Nbd7 {[%clk 0:03:00]} 7. Bg5 {[%clk 0:03:00]}  e5 {[%clk 0:03:00]} 8. d5 {[%clk 0:03:00]}  a5 {[%clk 0:02:59]} 9. Be2 {[%clk 0:03:00]}  Nc5 {[%clk 0:02:59]} 10. Nd2 {[%clk 0:03:01]}  c6 {[%clk 0:02:57]} 11. O-O {[%clk 0:03:00]}  h6 {[%clk 0:02:51]} 12. Bh4 {[%clk 0:02:47]}  Qb6 {[%clk 0:02:46]} 13. b3 {[%clk 0:02:38]}  Nh7 {[%clk 0:02:34]} 14. Be7 {[%clk 0:02:32]}  Re8 {[%clk 0:02:25]} 15. Bxd6 {[%clk 0:02:32]}  cxd5 {[%clk 0:02:04]} 16. Bxc5 {[%clk 0:02:11]}  Qxc5 {[%clk 0:02:04]} 17. Na4 {[%clk 0:02:06]}  Qd4 {[%clk 0:01:51]} 18. cxd5 {[%clk 0:02:03]}  Ng5 {[%clk 0:01:41]} 19. Rc1 {[%clk 0:01:56]}  Nxe4 {[%clk 0:01:18]} 20. Nxe4 {[%clk 0:01:56]}  Qxe4 {[%clk 0:01:17]} 21. Nb6 {[%clk 0:01:45]}  Bxh3 {[%clk 0:00:42]} 22. gxh3 {[%clk 0:01:41]}  Rad8 {[%clk 0:00:41]} 23. Qd3 {[%clk 0:01:27]}  Qh4 {[%clk 0:00:35]} 24. Qg3 {[%clk 0:01:10]}  Qb4 {[%clk 0:00:34]} 25. Qe3 {[%clk 0:00:51]}  Bf6 {[%clk 0:00:24]} 26. Rc4 {[%clk 0:00:48]}  Qd6 {[%clk 0:00:24]} 27. Qc5 {[%clk 0:00:42]}  Qb8 {[%clk 0:00:20]} 28. Qb5 {[%clk 0:00:35]}  Qd6 {[%clk 0:00:18]} 29. Qc5 {[%clk 0:00:30]}  Qb8 {[%clk 0:00:18]} 30. Bg4 {[%clk 0:00:31]}  h5 {[%clk 0:00:13]} 31. Nd7 {[%clk 0:00:31]}  Rxd7 {[%clk 0:00:12]} 32. Bxd7 {[%clk 0:00:32]}  Rd8 {[%clk 0:00:13]} 33. Qc8 {[%clk 0:00:31]}  Qa7 {[%clk 0:00:14]} 34. Qc7 {[%clk 0:00:29]}  Qa6 {[%clk 0:00:11]} 35. a4 {[%clk 0:00:26]}  Bh4 {[%clk 0:00:11]} 36. Bb5 {[%clk 0:00:25]}  Qf6 {[%clk 0:00:11]} 37. d6 {[%clk 0:00:22]}  Bg5 {[%clk 0:00:08]} 38. d7 {[%clk 0:00:21]}  Kg7 {[%clk 0:00:08]} 39. Qxb7 {[%clk 0:00:21]}  Bf4 {[%clk 0:00:09]} 40. Qg2 {[%clk 0:00:22]}  h4 {[%clk 0:00:08]} 41. Rc8 {[%clk 0:00:22]}  Qe7 {[%clk 0:00:07]} 42. Rxd8 {[%clk 0:00:23]}  Qxd8 {[%clk 0:00:08]} 43. Rd1 {[%clk 0:00:22]}  e4 {[%clk 0:00:07]} 44. Qxe4 {[%clk 0:00:22]} 1-0


[Site "https://www.chess.com"]

[Event "Titled Tuesday Blitz May 4 2021"]
[White "Berezin, Viktor"]
[Black "Injac, Teodora"]
[WhiteFideId "14107872"]
[BlackFideId "932400"]
[WhiteElo "2310"]
[BlackElo "2308"]
[Result "0-1"]
[Round "05"]
[TimeControl "180+1"]
[Date "2021.05.04"]
[WhiteClock "0:00:20"]
[BlackClock "0:00:17"]

1. d4 {[%clk 0:03:00]}  Nf6 {[%clk 0:02:59]} 2. c4 {[%clk 0:03:00]}  g6 {[%clk 0:03:00]} 3. Nf3 {[%clk 0:02:59]}  Bg7 {[%clk 0:03:00]} 4. Nc3 {[%clk 0:02:57]}  d6 {[%clk 0:03:00]} 5. e4 {[%clk 0:02:55]}  O-O {[%clk 0:03:01]} 6. h3 {[%clk 0:02:55]}  e5 {[%clk 0:02:59]} 7. d5 {[%clk 0:02:54]}  a5 {[%clk 0:02:54]} 8. g4 {[%clk 0:02:54]}  Na6 {[%clk 0:02:55]} 9. Be2 {[%clk 0:02:50]}  Nc5 {[%clk 0:02:54]} 10. Qc2 {[%clk 0:02:50]}  c6 {[%clk 0:02:52]} 11. Be3 {[%clk 0:02:46]}  cxd5 {[%clk 0:02:40]} 12. cxd5 {[%clk 0:02:38]}  Nfd7 {[%clk 0:02:17]} 13. O-O-O {[%clk 0:02:32]}  a4 {[%clk 0:02:16]} 14. Kb1 {[%clk 0:02:30]}  Nb8 {[%clk 0:01:55]} 15. Rdg1 {[%clk 0:02:18]}  Nba6 {[%clk 0:01:51]} 16. a3 {[%clk 0:02:18]}  Bd7 {[%clk 0:01:49]} 17. h4 {[%clk 0:02:15]}  Rc8 {[%clk 0:01:43]} 18. h5 {[%clk 0:02:11]}  Nb3 {[%clk 0:01:38]} 19. hxg6 {[%clk 0:01:50]}  fxg6 {[%clk 0:01:36]} 20. Qd1 {[%clk 0:01:45]}  Qa5 {[%clk 0:01:15]} 21. Ng5 {[%clk 0:01:38]}  Rxc3 {[%clk 0:01:04]} 22. bxc3 {[%clk 0:01:19]}  Qxc3 {[%clk 0:01:03]} 23. Ka2 {[%clk 0:01:19]}  Rc8 {[%clk 0:00:45]} 24. Bxa6 {[%clk 0:00:59]}  bxa6 {[%clk 0:00:43]} 25. Rxh7 {[%clk 0:00:52]}  Bb5 {[%clk 0:00:40]} 26. Rxg7+ {[%clk 0:00:51]}  Kxg7 {[%clk 0:00:40]} 27. Ne6+ {[%clk 0:00:51]}  Kg8 {[%clk 0:00:36]} 28. Rg3 {[%clk 0:00:26]}  Bc4 {[%clk 0:00:33]} 29. Bc5 {[%clk 0:00:22]}  Nc1+ {[%clk 0:00:27]} 30. Kb1 {[%clk 0:00:20]}  Ba2# {[%clk 0:00:17]} 0-1


[Site "https://www.chess.com"]

[Event "Titled Tuesday Blitz May 4 2021"]
[White "Bolanos, Fernando"]
[Black "Tokhirjonova, Gulrukhbegim"]
[WhiteFideId "3304094"]
[BlackFideId "14203626"]
[WhiteElo "1998"]
[BlackElo "2236"]
[Result "0-1"]
[Round "05"]
[TimeControl "180+1"]
[Date "2021.05.04"]
[WhiteClock "0:00:14"]
[BlackClock "0:01:10"]

1. e4 {[%clk 0:02:59]}  e5 {[%clk 0:02:59]} 2. Nf3 {[%clk 0:02:59]}  Nc6 {[%clk 0:02:53]} 3. Bb5 {[%clk 0:02:58]}  a6 {[%clk 0:02:53]} 4. Ba4 {[%clk 0:02:58]}  Nf6 {[%clk 0:02:53]} 5. O-O {[%clk 0:02:57]}  Be7 {[%clk 0:02:53]} 6. d3 {[%clk 0:02:53]}  b5 {[%clk 0:02:53]} 7. Bb3 {[%clk 0:02:54]}  d6 {[%clk 0:02:53]} 8. c3 {[%clk 0:02:55]}  O-O {[%clk 0:02:53]} 9. h3 {[%clk 0:02:55]}  h6 {[%clk 0:02:47]} 10. Nbd2 {[%clk 0:02:54]}  Na5 {[%clk 0:02:47]} 11. Bc2 {[%clk 0:02:54]}  c5 {[%clk 0:02:47]} 12. Re1 {[%clk 0:02:54]}  Nc6 {[%clk 0:02:48]} 13. Nf1 {[%clk 0:02:54]}  Qc7 {[%clk 0:02:47]} 14. a4 {[%clk 0:02:53]}  Be6 {[%clk 0:02:45]} 15. Ne3 {[%clk 0:02:53]}  Rfd8 {[%clk 0:02:43]} 16. d4 {[%clk 0:02:41]}  cxd4 {[%clk 0:02:42]} 17. cxd4 {[%clk 0:02:42]}  exd4 {[%clk 0:02:41]} 18. Nxd4 {[%clk 0:02:42]}  Nxd4 {[%clk 0:02:42]} 19. Qxd4 {[%clk 0:02:43]}  Nd7 {[%clk 0:02:38]} 20. Bd2 {[%clk 0:02:27]}  Bf6 {[%clk 0:02:37]} 21. Qb4 {[%clk 0:02:26]}  a5 {[%clk 0:02:30]} 22. Qxb5 {[%clk 0:01:56]}  Rdb8 {[%clk 0:02:29]} 23. Qf1 {[%clk 0:01:23]}  Bxb2 {[%clk 0:02:27]} 24. Rab1 {[%clk 0:01:16]}  Ba2 {[%clk 0:02:22]} 25. Rbd1 {[%clk 0:01:15]}  Nc5 {[%clk 0:02:08]} 26. Nd5 {[%clk 0:01:05]}  Qd7 {[%clk 0:01:55]} 27. Bc3 {[%clk 0:00:43]}  Bxd5 {[%clk 0:01:51]} 28. Bxb2 {[%clk 0:00:41]}  Rxb2 {[%clk 0:01:50]} 29. Bb1 {[%clk 0:00:34]}  Bb3 {[%clk 0:01:45]} 30. Rd4 {[%clk 0:00:27]}  Ne6 {[%clk 0:01:40]} 31. Rd3 {[%clk 0:00:20]}  Bc4 {[%clk 0:01:39]} 32. Red1 {[%clk 0:00:20]}  Bxd3 {[%clk 0:01:39]} 33. Qxd3 {[%clk 0:00:21]}  Rab8 {[%clk 0:01:40]} 34. e5 {[%clk 0:00:20]}  d5 {[%clk 0:01:38]} 35. Qh7+ {[%clk 0:00:19]}  Kf8 {[%clk 0:01:38]} 36. Bf5 {[%clk 0:00:18]}  Qxa4 {[%clk 0:01:25]} 37. Rd3 {[%clk 0:00:16]}  Rb1+ {[%clk 0:01:22]} 38. Kh2 {[%clk 0:00:17]}  Qf4+ {[%clk 0:01:12]} 39. Rg3 {[%clk 0:00:17]}  Ng5 {[%clk 0:01:11]} 40. e6 {[%clk 0:00:14]}  Nxh7 {[%clk 0:01:10]} 0-1


[Site "https://www.chess.com"]

[Event "Titled Tuesday Blitz May 4 2021"]
[White "Bon, Michael"]
[Black "Mikhalevski, Victor"]
[WhiteFideId "620696"]
[BlackFideId "2801914"]
[WhiteElo "2430"]
[BlackElo "2567"]
[Result "0-1"]
[Round "05"]
[TimeControl "180+1"]
[Date "2021.05.04"]
[WhiteClock "0:00:06"]
[BlackClock "0:01:00"]

1. e4 {[%clk 0:03:00]}  c5 {[%clk 0:02:58]} 2. Nf3 {[%clk 0:03:00]}  d6 {[%clk 0:02:59]} 3. d4 {[%clk 0:03:00]}  cxd4 {[%clk 0:02:59]} 4. Nxd4 {[%clk 0:03:00]}  Nf6 {[%clk 0:03:00]} 5. Nc3 {[%clk 0:03:00]}  g6 {[%clk 0:02:59]} 6. Be3 {[%clk 0:02:59]}  Bg7 {[%clk 0:03:00]} 7. f3 {[%clk 0:02:53]}  Nc6 {[%clk 0:03:00]} 8. Qd2 {[%clk 0:02:52]}  O-O {[%clk 0:02:59]} 9. O-O-O {[%clk 0:02:52]}  d5 {[%clk 0:02:58]} 10. exd5 {[%clk 0:02:49]}  Nxd5 {[%clk 0:02:58]} 11. Nxc6 {[%clk 0:02:47]}  bxc6 {[%clk 0:02:57]} 12. Bd4 {[%clk 0:02:48]}  Bxd4 {[%clk 0:02:55]} 13. Qxd4 {[%clk 0:02:45]}  Qb6 {[%clk 0:02:55]} 14. Na4 {[%clk 0:02:35]}  Qc7 {[%clk 0:02:49]} 15. Bc4 {[%clk 0:01:58]}  Rb8 {[%clk 0:02:49]} 16. h4 {[%clk 0:01:52]}  h5 {[%clk 0:02:43]} 17. Rhe1 {[%clk 0:01:25]}  Rb4 {[%clk 0:02:40]} 18. b3 {[%clk 0:01:21]}  Rd8 {[%clk 0:02:10]} 19. Qc5 {[%clk 0:01:11]}  Qf4+ {[%clk 0:01:56]} 20. Kb1 {[%clk 0:00:48]}  Be6 {[%clk 0:01:52]} 21. Re4 {[%clk 0:00:20]}  Qf6 {[%clk 0:01:24]} 22. Bxd5 {[%clk 0:00:19]}  Rxe4 {[%clk 0:01:23]} 23. fxe4 {[%clk 0:00:17]}  cxd5 {[%clk 0:01:23]} 24. exd5 {[%clk 0:00:18]}  Bg4 {[%clk 0:01:23]} 25. Rd4 {[%clk 0:00:15]}  Qxh4 {[%clk 0:01:20]} 26. Qc7 {[%clk 0:00:12]}  Rc8 {[%clk 0:01:04]} 27. Qxa7 {[%clk 0:00:11]}  Qe1+ {[%clk 0:01:01]} 28. Kb2 {[%clk 0:00:10]}  Qf2 {[%clk 0:01:02]} 29. Rc4 {[%clk 0:00:06]}  Qxa7 {[%clk 0:01:00]} 30. Rxc8+ {[%clk 0:00:06]}  Bxc8 {[%clk 0:01:00]} 0-1


[Site "https://www.chess.com"]

[Event "Titled Tuesday Blitz May 4 2021"]
[White "Brahami, Lamine"]
[Black "Kilpatrick, Callum"]
[WhiteFideId "7905637"]
[BlackFideId "414425"]
[WhiteElo "1909"]
[BlackElo "2472"]
[Result "1-0"]
[Round "05"]
[TimeControl "180+1"]
[Date "2021.05.04"]
[WhiteClock "0:00:32"]
[BlackClock "0:00:06"]

1. d4 {[%clk 0:03:00]}  Nf6 {[%clk 0:02:59]} 2. c4 {[%clk 0:02:55]}  g6 {[%clk 0:03:00]} 3. Nc3 {[%clk 0:02:52]}  d5 {[%clk 0:03:00]} 4. Nf3 {[%clk 0:02:48]}  Bg7 {[%clk 0:02:59]} 5. Bg5 {[%clk 0:02:47]}  Ne4 {[%clk 0:02:59]} 6. Bh4 {[%clk 0:02:47]}  Nxc3 {[%clk 0:02:59]} 7. bxc3 {[%clk 0:02:47]}  dxc4 {[%clk 0:03:00]} 8. e3 {[%clk 0:02:48]}  Be6 {[%clk 0:02:59]} 9. Rb1 {[%clk 0:02:39]}  Nd7 {[%clk 0:02:46]} 10. Be2 {[%clk 0:02:26]}  O-O {[%clk 0:02:35]} 11. O-O {[%clk 0:02:25]}  Nb6 {[%clk 0:02:29]} 12. h3 {[%clk 0:02:22]}  Bf5 {[%clk 0:02:01]} 13. Rb5 {[%clk 0:02:13]}  Qd7 {[%clk 0:01:57]} 14. Rc5 {[%clk 0:01:59]}  Na4 {[%clk 0:01:46]} 15. Ne5 {[%clk 0:01:56]}  Bxe5 {[%clk 0:01:41]} 16. Rxe5 {[%clk 0:01:56]}  Nxc3 {[%clk 0:01:40]} 17. Qe1 {[%clk 0:01:53]}  Nxe2+ {[%clk 0:01:39]} 18. Qxe2 {[%clk 0:01:54]}  Bd3 {[%clk 0:01:38]} 19. Qf3 {[%clk 0:01:47]}  f6 {[%clk 0:01:35]} 20. Rc5 {[%clk 0:01:33]}  b6 {[%clk 0:01:16]} 21. Rc6 {[%clk 0:01:33]}  Bxf1 {[%clk 0:01:01]} 22. Kxf1 {[%clk 0:01:32]}  b5 {[%clk 0:01:01]} 23. Bg3 {[%clk 0:01:32]}  Qf5 {[%clk 0:00:44]} 24. Qxf5 {[%clk 0:01:25]}  gxf5 {[%clk 0:00:45]} 25. Ke1 {[%clk 0:01:23]}  Rfc8 {[%clk 0:00:39]} 26. Rc5 {[%clk 0:01:21]}  a6 {[%clk 0:00:37]} 27. Rxf5 {[%clk 0:01:20]}  Rab8 {[%clk 0:00:33]} 28. Rc5 {[%clk 0:01:20]}  Kf7 {[%clk 0:00:30]} 29. Kd2 {[%clk 0:01:13]}  Rb7 {[%clk 0:00:30]} 30. Kc3 {[%clk 0:01:13]}  a5 {[%clk 0:00:27]} 31. e4 {[%clk 0:01:13]}  e6 {[%clk 0:00:24]} 32. h4 {[%clk 0:01:11]}  Ke7 {[%clk 0:00:24]} 33. Rh5 {[%clk 0:01:10]}  Rh8 {[%clk 0:00:23]} 34. Bf4 {[%clk 0:01:09]}  Kd7 {[%clk 0:00:20]} 35. Bh6 {[%clk 0:01:08]}  Rg8 {[%clk 0:00:20]} 36. g3 {[%clk 0:01:07]}  c5 {[%clk 0:00:18]} 37. Be3 {[%clk 0:01:06]}  cxd4+ {[%clk 0:00:17]} 38. Bxd4 {[%clk 0:01:07]}  e5 {[%clk 0:00:17]} 39. Be3 {[%clk 0:01:01]}  Ke6 {[%clk 0:00:17]} 40. Rh6 {[%clk 0:01:00]}  Rc8 {[%clk 0:00:17]} 41. Bg5 {[%clk 0:00:59]}  b4+ {[%clk 0:00:18]} 42. Kd2 {[%clk 0:00:57]}  Rf7 {[%clk 0:00:17]} 43. f4 {[%clk 0:00:56]}  exf4 {[%clk 0:00:16]} 44. gxf4 {[%clk 0:00:51]}  Rd8+ {[%clk 0:00:16]} 45. Kc2 {[%clk 0:00:51]}  a4 {[%clk 0:00:14]} 46. e5 {[%clk 0:00:50]}  b3+ {[%clk 0:00:14]} 47. axb3 {[%clk 0:00:50]}  cxb3+ {[%clk 0:00:15]} 48. Kc1 {[%clk 0:00:50]}  Rc7+ {[%clk 0:00:13]} 49. Kb2 {[%clk 0:00:49]}  Rd2+ {[%clk 0:00:13]} 50. Kb1 {[%clk 0:00:47]}  Rg2 {[%clk 0:00:09]} 51. Rxf6+ {[%clk 0:00:46]}  Kd5 {[%clk 0:00:09]} 52. Rd6+ {[%clk 0:00:41]}  Ke4 {[%clk 0:00:08]} 53. e6 {[%clk 0:00:42]}  a3 {[%clk 0:00:07]} 54. Rd1 {[%clk 0:00:40]}  a2+ {[%clk 0:00:07]} 55. Ka1 {[%clk 0:00:40]}  Ra7 {[%clk 0:00:07]} 56. Bf6 {[%clk 0:00:38]}  Kf5 {[%clk 0:00:07]} 57. Bd4 {[%clk 0:00:36]}  Kxe6 {[%clk 0:00:07]} 58. Bxa7 {[%clk 0:00:36]}  Kf5 {[%clk 0:00:08]} 59. Bb8 {[%clk 0:00:35]}  h5 {[%clk 0:00:08]} 60. Be5 {[%clk 0:00:34]}  Ke4 {[%clk 0:00:08]} 61. Rc1 {[%clk 0:00:32]}  Kd3 {[%clk 0:00:07]} 62. Rc3+ {[%clk 0:00:31]}  Kd2 {[%clk 0:00:07]} 63. Rxb3 {[%clk 0:00:31]}  Kc2 {[%clk 0:00:07]} 64. Rb2+ {[%clk 0:00:31]}  Kc1 {[%clk 0:00:06]} 65. Rxg2 {[%clk 0:00:32]} 1-0


[Site "https://www.chess.com"]

[Event "Titled Tuesday Blitz May 4 2021"]
[White "Brunner, Nicolas"]
[Black "Terletsky, Oleg"]
[WhiteFideId "620246"]
[BlackFideId "14116774"]
[WhiteElo "2372"]
[BlackElo "2094"]
[Result "1-0"]
[Round "05"]
[TimeControl "180+1"]
[Date "2021.05.04"]
[WhiteClock "0:00:19"]
[BlackClock "0:00:31"]

1. d4 {[%clk 0:03:00]}  Nf6 {[%clk 0:02:59]} 2. c4 {[%clk 0:02:59]}  g6 {[%clk 0:02:59]} 3. Nc3 {[%clk 0:02:58]}  Bg7 {[%clk 0:02:59]} 4. e4 {[%clk 0:02:58]}  d6 {[%clk 0:03:00]} 5. Nf3 {[%clk 0:02:58]}  O-O {[%clk 0:03:00]} 6. Be2 {[%clk 0:02:59]}  e5 {[%clk 0:03:01]} 7. d5 {[%clk 0:02:59]}  a5 {[%clk 0:03:00]} 8. Bg5 {[%clk 0:02:55]}  h6 {[%clk 0:03:00]} 9. Bh4 {[%clk 0:02:55]}  Na6 {[%clk 0:02:59]} 10. Nd2 {[%clk 0:02:56]}  Qe8 {[%clk 0:02:57]} 11. O-O {[%clk 0:02:55]}  Nh7 {[%clk 0:02:56]} 12. a3 {[%clk 0:02:55]}  Bd7 {[%clk 0:02:56]} 13. Kh1 {[%clk 0:02:52]}  h5 {[%clk 0:02:55]} 14. f3 {[%clk 0:02:48]}  Bh6 {[%clk 0:02:55]} 15. Nb5 {[%clk 0:02:45]}  Be3 {[%clk 0:02:48]} 16. Rb1 {[%clk 0:02:43]}  a4 {[%clk 0:02:38]} 17. Be1 {[%clk 0:02:42]}  Bxb5 {[%clk 0:02:34]} 18. cxb5 {[%clk 0:02:42]}  Nc5 {[%clk 0:02:35]} 19. Nc4 {[%clk 0:02:32]}  Bd4 {[%clk 0:02:27]} 20. Bd2 {[%clk 0:02:12]}  b6 {[%clk 0:02:24]} 21. Bh6 {[%clk 0:02:09]}  Qe7 {[%clk 0:02:21]} 22. Bxf8 {[%clk 0:02:09]}  Rxf8 {[%clk 0:02:19]} 23. Qc2 {[%clk 0:02:06]}  h4 {[%clk 0:02:07]} 24. g3 {[%clk 0:02:06]}  Kg7 {[%clk 0:01:44]} 25. Kg2 {[%clk 0:02:05]}  Nf6 {[%clk 0:01:43]} 26. Rbe1 {[%clk 0:01:54]}  Rh8 {[%clk 0:01:40]} 27. Bd1 {[%clk 0:01:42]}  Nh5 {[%clk 0:01:37]} 28. f4 {[%clk 0:01:17]}  hxg3 {[%clk 0:01:16]} 29. Bxh5 {[%clk 0:01:16]}  Rxh5 {[%clk 0:01:09]} 30. hxg3 {[%clk 0:01:12]}  exf4 {[%clk 0:01:06]} 31. Rxf4 {[%clk 0:01:08]}  Qg5 {[%clk 0:00:55]} 32. Qd2 {[%clk 0:00:53]}  Qh6 {[%clk 0:00:49]} 33. Qxd4+ {[%clk 0:00:52]}  Kg8 {[%clk 0:00:45]} 34. Qf6 {[%clk 0:00:23]}  Rh2+ {[%clk 0:00:41]} 35. Kf3 {[%clk 0:00:23]}  Qh5+ {[%clk 0:00:41]} 36. Ke3 {[%clk 0:00:21]}  g5 {[%clk 0:00:31]} 37. Rf5 {[%clk 0:00:19]} 1-0


[Site "https://www.chess.com"]

[Event "Titled Tuesday Blitz May 4 2021"]
[White "Camlar, Arda"]
[Black "Sikorova, Olga"]
[WhiteFideId "44576692"]
[BlackFideId "307033"]
[WhiteElo "2007"]
[BlackElo "2188"]
[Result "1-0"]
[Round "05"]
[TimeControl "180+1"]
[Date "2021.05.04"]
[WhiteClock "0:01:16"]
[BlackClock "0:00:16"]

1. c4 {[%clk 0:03:00]}  Nf6 {[%clk 0:02:58]} 2. Nc3 {[%clk 0:03:00]}  g6 {[%clk 0:02:58]} 3. Nf3 {[%clk 0:03:00]}  Bg7 {[%clk 0:02:56]} 4. g3 {[%clk 0:03:01]}  O-O {[%clk 0:02:53]} 5. Bg2 {[%clk 0:02:59]}  d6 {[%clk 0:02:53]} 6. O-O {[%clk 0:02:58]}  Nc6 {[%clk 0:02:53]} 7. d4 {[%clk 0:02:58]}  a6 {[%clk 0:02:53]} 8. Bg5 {[%clk 0:02:56]}  h6 {[%clk 0:02:51]} 9. Bf4 {[%clk 0:02:55]}  Bf5 {[%clk 0:02:48]} 10. Re1 {[%clk 0:02:53]}  Ne4 {[%clk 0:02:47]} 11. Nh4 {[%clk 0:02:41]}  Nxc3 {[%clk 0:02:46]} 12. bxc3 {[%clk 0:02:41]}  Bd7 {[%clk 0:02:43]} 13. Nf3 {[%clk 0:02:40]}  g5 {[%clk 0:02:40]} 14. Bc1 {[%clk 0:02:38]}  Rb8 {[%clk 0:02:40]} 15. e4 {[%clk 0:02:37]}  e5 {[%clk 0:02:39]} 16. Be3 {[%clk 0:02:25]}  b5 {[%clk 0:02:13]} 17. cxb5 {[%clk 0:02:25]}  Rxb5 {[%clk 0:02:12]} 18. d5 {[%clk 0:02:12]}  Ne7 {[%clk 0:02:11]} 19. c4 {[%clk 0:02:10]}  Rb2 {[%clk 0:02:09]} 20. Qc1 {[%clk 0:02:07]}  Qb8 {[%clk 0:02:07]} 21. h4 {[%clk 0:02:02]}  g4 {[%clk 0:02:01]} 22. Nd2 {[%clk 0:02:02]}  f5 {[%clk 0:01:59]} 23. Nb3 {[%clk 0:01:54]}  Rxb3 {[%clk 0:01:52]} 24. axb3 {[%clk 0:01:53]}  Qxb3 {[%clk 0:01:51]} 25. Bxh6 {[%clk 0:01:47]}  f4 {[%clk 0:01:49]} 26. Bxg7 {[%clk 0:01:47]}  Kxg7 {[%clk 0:01:47]} 27. Qa3 {[%clk 0:01:43]}  Qb6 {[%clk 0:01:17]} 28. c5 {[%clk 0:01:35]}  dxc5 {[%clk 0:01:03]} 29. Rac1 {[%clk 0:01:31]}  fxg3 {[%clk 0:01:00]} 30. fxg3 {[%clk 0:01:28]}  c4+ {[%clk 0:00:59]} 31. Qe3 {[%clk 0:01:26]}  Qxe3+ {[%clk 0:00:51]} 32. Rxe3 {[%clk 0:01:26]}  Bb5 {[%clk 0:00:46]} 33. Bf1 {[%clk 0:01:25]}  Rd8 {[%clk 0:00:27]} 34. Bxc4 {[%clk 0:01:24]}  c6 {[%clk 0:00:25]} 35. Bxb5 {[%clk 0:01:19]}  axb5 {[%clk 0:00:23]} 36. dxc6 {[%clk 0:01:18]}  Rc8 {[%clk 0:00:23]} 37. c7 {[%clk 0:01:18]}  Kf6 {[%clk 0:00:19]} 38. Rb3 {[%clk 0:01:17]}  Ke6 {[%clk 0:00:16]} 39. Rxb5 {[%clk 0:01:17]}  Kd7 {[%clk 0:00:16]} 40. Rb8 {[%clk 0:01:16]} 1-0


[Site "https://www.chess.com"]